Cogmind - Beta 14 @@@ ROGUE MODE // 2025.03.30 @ 20:12:49 Player: elysium Result: Destroyed by G-34 Mercenary with Small Laser Performance ------------- Evolutions (0) 0 Regions Visited (4) 800 Robots Destroyed (45) 225 Value Destroyed (945) 945 Prototype IDs (0) 0 Alien Tech Used (0) 0 Bonus (0) 0 TOTAL SCORE: 1970 Bonus ------- None Cogmind --------- Core Integrity 0/250 Matter 273/300 Energy 94/100 System Corruption 3% Temperature Hot (249) Movement Walking (190) Ox1 Location -9/Mines Parts ------- > --- POWER (1) -------- (None) > --- PROPULSION (2) --- Aluminum Leg > --- UTILITY (2) ------ Medium Storage Unit Light Armor Plating > --- WEAPON (2) ------- Medium Laser Minigun (fused) > --- INVENTORY (10) --- Light Ion Engine Light Ion Engine Light Treads Light Treads High-capacity Storage Unit Structural Scanner Structural Scanner Hardened Light Armor Plating Battle Cannon Grenade Launcher Peak State ------------ > --- POWER ------------ Improved Ion Engine > --- PROPULSION ------- Aluminum Leg Aluminum Leg > --- UTILITY ---------- Medium Storage Unit Hardened Light Armor Plating > --- WEAPON ----------- Medium Laser Minigun > --- INVENTORY -------- Light Ion Engine Light Ion Engine Light Treads Light Treads Aluminum Leg High-capacity Storage Unit Structural Scanner Structural Scanner Light Armor Plating Grenade Launcher [Rating: 12] Favorites ----------- Power Light Ion Engine Engine Light Ion Engine Propulsion Aluminum Leg Leg Aluminum Leg Utility Medium Storage Unit Device Seismic Detector Storage Medium Storage Unit Protection Hardened Light Armor Plating Weapon Medium Laser Energy Gun Medium Laser Ballistic Gun Minigun Launcher Grenade Launcher Build | -11 -10 -10 -10 -9 ------- Run | Yrd Mat Min Exi Min Slots Evolved . | . . . . . Power . | . . . . . Propulsion . | . . . . . Utility . | . . . . . Weapon . | . . . . . Parts Attached 33 | 6 22 4 . 1 Power 4 | 1 2 1 . . Engine 4 | 1 2 1 . . Core . | . . . . . Reactor . | . . . . . Propulsion 7 | 2 4 1 . . Treads . | . . . . . Leg 7 | 2 4 1 . . Wheel . | . . . . . Hover . | . . . . . Flight . | . . . . . Utility 8 | 1 6 . . 1 Device 2 | . 2 . . . Storage 3 | 1 2 . . . Processor . | . . . . . Hackware . | . . . . . Protection 3 | . 2 . . 1 Artifact . | . . . . . Weapon 14 | 2 10 2 . . Energy Gun 8 | 2 6 . . . Energy Cannon . | . . . . . Ballistic Gun 2 | . 1 1 . . Ballistic Cannon . | . . . . . Launcher 4 | . 3 1 . . Special Weapon . | . . . . . Impact Weapon . | . . . . . Slashing Weapon . | . . . . . Piercing Weapon . | . . . . . Special Melee Weapon . | . . . . . Unidentified Prototypes . | . . . . . Parts Lost 6 | . 4 . . 2 Power 1 | . . . . 1 Propulsion 3 | . 2 . . 1 Utility . | . . . . . Weapon 2 | . 2 . . . Highest Loss Streak 3 | . 3 . . 1 To Critical Strikes . | . . . . . Average Slot Usage (%) 98 | . 98 100 100 86 Engine 13 | . 14 14 14 13 Leg 27 | . 27 28 28 16 Device 2 | . 6 . . . Storage 15 | . 18 14 14 14 Protection 9 | . 2 14 14 14 Energy Gun 16 | . 19 14 14 14 Ballistic Gun 10 | . 5 13 14 14 Launcher 1 | . 2 . . . Peak Build Rating 12 | 6 9 12 12 12 Average Rating 9 | 5 7 10 12 10 On Entrance 7 | . 6 9 12 12 Naked Turns . | . . . . . Heaviest Build 27 | 12 22 27 27 27 Greatest Support 20 | 20 20 20 20 20 Greatest Overweight (x) 6 | 2 6 1 1 2 Average Overweight (x) . | . . 1 1 1 Largest Inventory Capacity 10 | 8 10 10 10 10 Average Capacity 9 | 7 9 10 10 10 Most Carried 10 | 4 10 10 10 10 Average Carried 9 | 3 8 9 10 10 Final Capacity 10 | 8 10 10 10 10 Final Carried 10 | 4 10 10 10 10 Class Distribution -------------------- 89% | Mutant 10% | Scavenger-Mutant Dominant Class ---------------- Mutant | -10/Materials Mutant | -10/Mines Mutant | -10/Exiles Mutant | -9/Mines Resources | -11 -10 -10 -10 -9 ----------- Run | Yrd Mat Min Exi Min Matter Collected 859 | 260 285 221 . 93 Remotely . | . . . . . Salvage Created 1172 | 256 536 226 . 154 Parts 76 | 17 38 10 . 11 Haulers Intercepted . | . . . . . Recyclers Shooed . | . . . . . Parts Field Recycled . | . . . . . Retrieved Matter . | . . . . . Parts Self-Destructed . | . . . . . Prevented . | . . . . . Kills | -11 -10 -10 -10 -9 ------- Run | Yrd Mat Min Exi Min Combat Hostiles Destroyed 25 | . 15 4 . 6 Guns 18 | . 10 2 . 6 AOE 7 | . 5 2 . . Classes Destroyed 8 | 3 4 1 . . Worker 7 | 2 3 2 . . Builder 1 | . 1 . . . Tunneler 8 | 5 3 . . . Recycler 1 | 1 . . . . Watcher 3 | . 3 . . . Swarmer 7 | . 3 . . 4 Grunt 16 | . 12 2 . 2 Sentry 2 | . . 2 . . Best Kill Streak 7 | 4 7 3 . 4 Combat Bots Only 4 | . 3 2 . 4 Max Kills in Single Turn 3 | 1 3 2 . 1 Gunslinging . | . . . . . Exploded 2 | . 2 2 . . Melee . | . . . . . Uniques/NPCs Destroyed . | . . . . . Combat | -11 -10 -10 -10 -9 -------- Run | Yrd Mat Min Exi Min Hostile Shots Fired 178 | . 83 40 . 55 Missed 49 | . 20 17 . 12 Damage Taken 1590 | 36 761 392 . 401 Core 250 | . 74 79 . 97 Absorbed by Shields . | . . . . . Redirected to Shielding 3 | . 3 . . . Regen/Repaired (Parts) 13 | . 13 . . . Core Remaining (%) 100 | 100 . . . . Volleys Fired 115 | 17 61 16 . 21 Largest 2 | 2 2 2 . 2 Hottest 100 | 90 100 80 . 75 Shots Fired 207 | 34 105 27 1 40 Gun 197 | 34 97 25 1 40 Cannon . | . . . . . Launcher 10 | . 8 2 . . Special . | . . . . . Kinetic 55 | . 26 9 . 20 Thermal 121 | 17 67 16 1 20 Explosive 10 | . 8 2 . . Electromagnetic 21 | 17 4 . . . Robot Hit Streak 6 | 6 5 5 . 4 Robot Miss Streak 6 | 3 6 3 . 4 Penetration Max . | . . . . . Secondary Targets 3 | . 1 1 . 1 Max Gunslinging Chain 1 | . 1 1 . 1 Shots Hit Robots 103 | 20 45 17 . 21 Core Hits 61 | 9 32 12 . 8 Critical Kills . | . . . . . Critical Parts Destroyed . | . . . . . Critical Strikes 4 | 1 2 . . 1 Burn 4 | 1 2 . . 1 Melee Attacks . | . . . . . Impact . | . . . . . Slashing . | . . . . . Piercing . | . . . . . Sneak Attacks . | . . . . . Combat Hostiles . | . . . . . Follow-up Attacks . | . . . . . Damage Inflicted 2598 | 346 1539 385 . 328 Guns 1429 | 280 632 189 . 328 Cannons . | . . . . . Explosions 1158 | 66 900 192 . . Melee . | . . . . . Ramming 11 | . 7 4 . . Kinetic 423 | . 128 78 . 217 Thermal 916 | 205 489 111 . 111 Explosive 1092 | . 900 192 . . Electromagnetic 156 | 141 15 . . . Impact . | . . . . . Slashing . | . . . . . Piercing . | . . . . . Highest Corruption 3 | . 3 3 3 3 Average Corruption 2 | . 2 3 3 3 Corruption Purged . | . . . . . Corruption Blocked . | . . . . . Effects 58 | . 19 22 12 5 Message Errors 13 | . 4 5 3 1 Matter Fused 14 | . 5 6 3 . Heat Flow Errors 8 | . 2 4 1 1 Energy Discharges 9 | . 4 3 2 . Parts Fused 1 | . . . . 1 Data Loss (minor) 5 | . 2 1 2 . Data Loss (major) 2 | . . 2 . . Misfires 4 | . 2 1 1 . Weapon Failures 2 | . . . . 2 Overload Shots . | . . . . . Overflow Damage 129 | 7 122 . . . Projectiles . | . . . . . Explosions 129 | 7 122 . . . Melee . | . . . . . Knockbacks . | . . . . . Impact . | . . . . . Kinetic . | . . . . . Secondary . | . . . . . Self-Inflicted Damage 113 | 36 43 34 . . Shots 4 | 1 1 2 . . Rammed . | . . . . . Targets Rammed 4 | . 2 2 . . Kicked 4 | . 2 2 . . Crushed . | . . . . . Highest Temperature 408 | 234 408 258 212 325 Average Temperature 118 | 119 105 108 95 161 Received Heat Transfer 609 | . 369 150 . 90 Effects 2 | . . . 2 . Interference 2 | . . . 2 . Siege Activations . | . . . . . Robots Corrupted . | . . . . . Combat Hostiles . | . . . . . Parts Fried . | . . . . . Impact Corruptions . | . . . . . Robots Melted . | . . . . . Combat Hostiles . | . . . . . Parts Melted 2 | 1 . . . 1 Heat Transferred 2794 | 581 1473 333 . 407 Parts Sabotaged . | . . . . . Parts Stolen . | . . . . . Parts Stripped . | . . . . . Power Chain Reactions 1 | 1 . . . . Alert | -11 -10 -10 -10 -9 ------- Run | Yrd Mat Min Exi Min Peak Influence 403 | 40 403 117 . 120 Initial 117 | . 26 117 . . Average 126 | 15 197 61 . 68 Maximum Alert Level 2 | . 2 . . . Low Security (%) 74 | 100 47 100 . 100 Level 1 25 | . 51 . . . Level 2 . | . . . . . Level 3 . | . . . . . Level 4 . | . . . . . Level 5 . | . . . . . High Security . | . . . . . Max Security . | . . . . . Squads Dispatched 8 | . 7 1 . . Investigation 6 | . 5 1 . . Extermination . | . . . . . Reinforcement 2 | . 2 . . . Assault . | . . . . . Garrison . | . . . . . Intercept . | . . . . . Searches Triggered . | . . . . . Construction Impeded . | . . . . . Haulers Reinforced . | . . . . . Active Scanning Responses . | . . . . . Cargo Convoy Interrupts . | . . . . . Stealth | -11 -10 -10 -10 -9 --------- Run | Yrd Mat Min Exi Min Distress Signals 2 | . 2 . . . Communications Jammed . | . . . . . Distress Signals . | . . . . . Times Spotted 37 | . 25 5 . 7 Peak Tracking Total 5 | . 5 3 . 4 Tactical Retreats 2 | . 2 . . . Traps | -11 -10 -10 -10 -9 ------- Run | Yrd Mat Min Exi Min Traps Triggered 4 | . 4 . . . Indirectly . | . . . . . Trap Hack Attempts . | . . . . . Triggered . | . . . . . Disarmed 3 | . 3 . . . Reprogrammed . | . . . . . Reused . | . . . . . Traps Extracted . | . . . . . Installed 4 | . . 4 . . Triggered . | . . . . . Machines | -11 -10 -10 -10 -9 ---------- Run | Yrd Mat Min Exi Min Machines Disabled 8 | . 8 . . . Max in Single Turn 2 | . 2 . . . Machines Repaired . | . . . . . Machines Dismantled . | . . . . . Machines Sabotaged . | . . . . . Overloaded Fab Kills . | . . . . . Hacking | -11 -10 -10 -10 -9 --------- Run | Yrd Mat Min Exi Min Machines Accessed 13 | . 8 1 4 . Terminals 5 | . 5 . . . Fabricators . | . . . . . Repair Stations 1 | . 1 . . . Recycling Units 2 | . 2 . . . Scanalyzers . | . . . . . Garrison Access . | . . . . . Total Hacks 25 | . 20 1 4 . Successful 17 | . 12 1 4 . Failed 8 | . 8 . . . Catastrophic . | . . . . . Database Lockouts . | . . . . . Manual 4 | . 4 . . . Terminals 12 | . 12 . . . Fabricators . | . . . . . Repair Stations 5 | . 5 . . . Recycling Units 3 | . 3 . . . Scanalyzers . | . . . . . Garrison Access . | . . . . . Terminal Hacks 12 | . 7 1 4 . Record 4 | . . . 4 . Open Door 1 | . . 1 . . Branch Access Points 1 | . 1 . . . Terminal Index 1 | . 1 . . . Disarm Traps 1 | . 1 . . . Registered Components 1 | . 1 . . . Zone Layout 3 | . 3 . . . Fabricator Hacks . | . . . . . Repair Station Hacks 3 | . 3 . . . Scan Component 2 | . 2 . . . Repair 1 | . 1 . . . Recycling Unit Hacks . | . . . . . Scanalyzer . | . . . . . Garrison Access Hacks . | . . . . . Unauthorized Hacks 2 | . 2 . . . Terminals . | . . . . . Fabricators . | . . . . . Repair Stations . | . . . . . Recycling Units 2 | . 2 . . . Tunnel 2 | . 2 . . . Scanalyzers . | . . . . . Garrison Access . | . . . . . Data Cores Recovered . | . . . . . Used . | . . . . . Hacking Detections 4 | . 4 . . . Full Trace Events 1 | . 1 . . . Feedback Events . | . . . . . Feedback Blocked . | . . . . . Robot Schematics Acquired . | . . . . . Robots Built . | . . . . . Authchips . | . . . . . Time . | . . . . . Total Robot Build Rating . | . . . . . Part Schematics Acquired . | . . . . . Parts Built . | . . . . . Authchips . | . . . . . Time . | . . . . . Total Part Build Rating . | . . . . . Parts Repaired 1 | . 1 . . . Time 13 | . 13 . . . Parts Recycled . | . . . . . Recycled Matter . | . . . . . Retrieved Matter . | . . . . . Retrieved Components . | . . . . . Parts Scanalyzed . | . . . . . Part Schematics Acquired . | . . . . . Parts Damaged . | . . . . . Bothacking | -11 -10 -10 -10 -9 ------------ Run | Yrd Mat Min Exi Min Used RIF Installer . | . . . . . Robots Hacked . | . . . . . Non-combat . | . . . . . Combat . | . . . . . Robot Hacks Applied . | . . . . . Relay Couplers Released . | . . . . . Fabnet Peak Effective % . | . . . . . Robots Rewired . | . . . . . Allies Hacked . | . . . . . Hacks Repelled . | . . . . . Allies | -11 -10 -10 -10 -9 -------- Run | Yrd Mat Min Exi Min Total Allies . | . . . . . Largest Group . | . . . . . Highest-Rated Group . | . . . . . Highest-Rated Ally . | . . . . . Total Orders . | . . . . . Ally Attacks . | . . . . . Total Damage . | . . . . . Kills . | . . . . . Allies Corrupted . | . . . . . Allies Melted . | . . . . . Intel | -11 -10 -10 -10 -9 ------- Run | Yrd Mat Min Exi Min Robot Analysis Total . | . . . . . Derelict Logs Recovered 1 | . . 1 . . Drone Launches . | . . . . . Drone Recoveries . | . . . . . Exploration | -11 -10 -10 -10 -9 ------------- Run | Yrd Mat Min Exi Min Turns Passed 3664 | 156 1375 1125 869 139 Spaces Moved 1860 | 78 730 562 458 32 Core 12 | 9 3 . . . Treads . | . . . . . Legs 1848 | 69 727 562 458 32 Wheels . | . . . . . Hover . | . . . . . Flight . | . . . . . Fastest Speed 50 | 50 120 190 190 190 Average Speed 169 | 117 142 190 190 249 Slowest Speed 350 | 150 350 190 190 260 Overloaded Moves . | . . . . . Propulsion Burnouts . | . . . . . Robots Hopped . | . . . . . Cave-ins Triggered . | . . . . . Exploration Rate (%) 58 | 4 99 92 89 9 Regions Visited 4 Branch Regions 3 Pre-discovered Areas 2 | . 2 . . . Known Exits Taken 1 | . 1 . . . Unknown Exits Taken 3 | 1 . 1 1 . Scrap Searched 2 | . . 1 . 1 Spaces Dug . | . . . . . Terrain Destroyed 67 | 8 50 9 . . Melee . | . . . . . Projectile . | . . . . . AOE 67 | 8 50 9 . . Terrain Rammed . | . . . . . Walls Destroyed . | . . . . . Machines Disabled . | . . . . . Actions | -11 -10 -10 -10 -9 --------- Run | Yrd Mat Min Exi Min Total 2165 | 105 956 593 457 54 Wait 126 | . 125 1 . . Move 1857 | 77 729 562 457 32 Hop . | . . . . . Pick Up 16 | 5 9 2 . . Fast Attach 12 | 5 7 . . . Attach 3 | 1 2 . . . Detach . | . . . . . Swap 18 | . 13 4 . 1 Drop 11 | . 8 3 . . Fire 115 | 17 61 16 . 21 Melee . | . . . . . Ram . | . . . . . Kick 3 | . 2 1 . . Crush . | . . . . . Escape Stasis . | . . . . . Rewire . | . . . . . Trap 4 | . . 4 . . Miscellaneous . | . . . . . Route ------- -11/Scrapyard -10/Materials (discovered 4 exits: [*Mat x3] / *Min) -10/Mines (discovered 4 exits: [*Mat x2] / *Exi / Sub) -10/Exiles (discovered 2 exits: [*Min x2]) -9/Mines History --------- Turn | Location | Event 10 | -11/Scrapyard | Discovered new exit (range 15) 157 | -11/Scrapyard | Entered Materials 301 | -10/Materials | Build established: Mutant 406 | -10/Materials | Lost 3 parts (2n1w) 620 | -10/Materials | Discovered new exit (range 15) 688 | -10/Materials | Build established: Scavenger-Mutant 761 | -10/Materials | Discovered new exit (range 6) 870 | -10/Materials | Identified exit to Mines 870 | -10/Materials | Discovered new exit (range 13) 1071 | -10/Materials | Build established: Mutant 1127 | -10/Materials | Repaired Aluminum Leg 1532 | -10/Materials | Entered Mines 1734 | -10/Mines | Identified exit to Subcaves 1937 | -10/Mines | Deemed a non-threat by the Exiles lab entrance 1937 | -10/Mines | Discovered new exit (range 5) 1983 | -10/Mines | Found a hidden stash of uninstalled traps 2030 | -10/Mines | Discovered new exit (range 12) 2092 | -10/Mines | Core integrity fell below 50% 2150 | -10/Mines | Discovered new exit (range 11) 2168 | -10/Mines | Met a Derelict shopkeep closing up shop 2542 | -10/Mines | A weapon hastily lodged in a ceiling crevice suddenly fell to the ground 2657 | -10/Mines | Entered Exiles 2657 | -10/Exiles | Found Exiles lab abandoned 2690 | -10/Exiles | Discovered new exit (range 14) 3108 | -10/Exiles | Discovered new exit (range 11) 3526 | -10/Exiles | Entered Mines 3566 | -9/Mines | Core integrity fell below 20% 3665 | -9/Mines | Destroyed by G-34 Mercenary with Small Laser Last Messages --------------- 03561_ R-06 Scavenger collects Lgt. Ion Engine. 03565_ S-10 Pest destroyed. 03565_ R-06 Scavenger collects Lgt. Assault Rifle. 03568_ Acquired 36 matter. 03569_ R-06 Scavenger collects Flight Unit. 03572_ R-06 Scavenger collects Lgt. Ion Engine. 03574_ System corrupted: Minigun fused. 03576_ K-01 Serf collects debris. 03579_ Destroyed Com. Wheel. 03580_ K-01 Serf collects debris. 03582_ Acquired 8 matter. 03591_ System corrupted: Heat flow error (+276). 03637_ R5QLJTXS&4UR4JADM/VN 03650_ G-34 Mercenary destroyed. 03655_ Imp. Ion Engine destroyed. 03655_ Imp. Heat Sink melted. 03655_ G-47 Trooper destroyed. 03655_ Switching to secondary target: G-34 Mercenary. Map ----- +----------------------------------------------------+ | | | | | | | | | | | | | | | | | | | | | | | ???????????????????????????????????????? | | ???????????????????????????????????????? | | ??????????????###??????????????????????? | | ????????###### ##?????????????????????? | | ????????# ##????????????????????? | | ????????# #????????????????????? | | ????????# #????????????????????? | | ????????# ##?????????#??????????? | | ????????# ## ##???????? ##?????????? | | ???###### ######???????? #?????????? | | ??## ## =##???####??? #?????????? | | ??# %[#=%[##?## ### #??????????? | | ??# =% ### = #???????????? | | ??# [= %*g #????????????? | | ??## % @ % #????????????? | | ???## ###### #????????????? | | ????## #????? #????????????? | | ?????# ##?????? ## ##????????????? | | ?????## ###??????? ##?? #?????????????? | | ??????####??????????#??????????????????? | | ???????????????????????????????????????? | | ???????????????????????????????????????? | | ???????????????????????????????????????? | | ???????????????????????????????????????? | | ???????????????????????????????????????? | | ???????????????????????????????????????? | | ???????????????????????????????????????? | | ???????????????????????????????????????? | | ???????????????????????????????????????? | | ???????????????????????????????????????? | | ???????????????????????????????????????? | | ???????????????????????????????????????? | | ???????????????????????????????????????? | | ???????????????????????????????????????? | | ???????????????????????????????????????? | | ???????????????????????????????????????? | | ???????????????????????????????????????? | | ???????????????????????????????????????? | | ???????????????????????????????????????? | +----------------------------------------------------+ Best States ------------- Heat Dissipation 25 Energy Generation 12 Energy Capacity 265 Matter Stores 300 Matter Capacity 300 Sight Range 16 Terrain Scan Density 10 Armor Coverage 150 Utility Shielding 33 Evasion (%) 55 Item Schematics ----------------- None Robot Schematics ------------------ None Fabricated ------------ Nothing Alien Tech Used ----------------- None Achievements -------------- None Challenges ------------ None Game ------ Seed StasisBombardmentRipteeth Manual? 0 Play Time 00:20:45 Cumulative 34.1 hours Start 2025.03.16 @ 19:36:54 End 2025.03.30 @ 20:12:49 Sessions 3 Manual Loads 0 Difficulty Rogue Special Mode None Game No. 14 Rogue 2 Adventurer 0 Explorer 12 Win Type - Total 0 Types 0/0/0/0/0/0/0/0/0 Lore% 20 Gallery% 28 Achievement% 30 Wizard Run 0 Options --------- Layout 1 ASCII 0 Keyboard 0 Movement Mouse Keybinds 0 Fullscreen 1 Font 24/Smallcaps Map View 50x40 Zoom Use 0% Tactical HUD 1 Map Filters NONE Filters NONE Steam 1 RUN: 6a661fda-68de-449c-9164-8f34d12dfa5e